bitfinex-derivatives/quotes_BTCF0:USTF0_20210708
["timestamp","ask_amount","ask_price","bid_price","bid_amount"]
[1625731227694,0.24057544,32394.0,32392.0,0.1]
[1625731228145,0.24057544,32394.0,32386.0,0.89365672]
[1625731228295,0.057,32393.0,32386.0,0.89365672]
[1625731228446,0.72172632,32387.0,32386.0,0.89365672]
[1625731228895,0.72172632,32387.0,32386.0,0.99365672]
[1625731232426,0.72172632,32387.0,32386.0,0.98675221]
[1625731239710,0.72172632,32387.0,32386.0,1.01825221]
[1625731241734,0.72172632,32387.0,32386.0,1.51825221]
[1625731242636,0.003,32401.0,32386.0,1.51825221]
[1625731242637,0.84018688,32406.0,32386.0,1.87750221]
[1625731242788,1.19137216,32407.0,32386.0,1.87750221]
[1625731242936,0.15428855,32407.0,32386.0,2.34058621]
[1625731243084,0.15428855,32407.0,32386.0,2.24058621]
[1625731243385,0.002,32397.0,32386.0,2.24058621]
[1625731243534,0.002,32397.0,32387.0,0.00364035]
[1625731243836,0.002,32397.0,32396.0,0.1]
[1625731243985,0.002,32397.0,32396.0,0.92905]
[1625731244288,0.003,32402.0,32396.0,1.387079]
[1625731244585,1.38961986,32423.0,32396.0,1.387079]
[1625731244586,0.24057544,32413.0,32401.0,0.96230176]
[1625731244742,0.1542171,32422.0,32402.0,0.557]
[1625731245037,0.1542171,32422.0,32402.0,1.021386]
[1625731245185,0.1542171,32422.0,32421.0,0.1]
[1625731245335,0.1542171,32422.0,32421.0,0.93637]
[1625731245653,1.74437358,32442.0,32421.0,0.93637]
[1625731245654,1.22205502,32435.0,32421.0,0.93637]
[1625731245935,0.01818928,32434.0,32421.0,0.93637]
[1625731246086,0.01818928,32434.0,32421.0,0.83637]
[1625731246238,0.01818851,32438.0,32421.0,0.83637]
[1625731246391,0.002,32433.0,32421.0,0.83637]
[1625731246573,0.002,32433.0,32432.0,0.48115088]
[1625731246697,0.002,32433.0,32432.0,1.38081088]
[1625731246849,0.002,32433.0,32432.0,1.48081088]
[1625731247162,0.002,32433.0,32432.0,1.51231088]
[1625731249017,0.002,32433.0,32432.0,0.53116]
[1625731249192,0.002,32433.0,32432.0,0.1885]
[1625731249317,0.002,32433.0,32432.0,0.1315]
[1625731249472,0.002,32433.0,32421.0,0.057]
[1625731249621,0.30197964,32433.0,32386.0,0.0939]
[1625731249769,0.30197964,32433.0,32367.0,0.0931]
[1625731249918,1.2236522,32431.0,32393.0,0.01004054]
[1625731250069,1.2236522,32431.0,32393.0,0.01367926]
[1625731250219,1.22356569,32428.0,32394.0,0.01005341]
[1625731250368,1.39833582,32430.0,32394.0,0.01005341]
[1625731250369,1.24317252,32430.0,32394.0,0.57069193]
[1625731250672,0.24057544,32418.0,32416.0,0.24057544]
[1625731250820,0.52469544,32418.0,32417.0,0.057]
[1625731251570,0.52469544,32418.0,32417.0,0.1885]
[1625731251721,0.39199544,32418.0,32417.0,0.1885]
[1625731251871,0.28412,32418.0,32417.0,0.6885]
[1625731252020,0.28379,32433.0,32417.0,0.6885]
[1625731252517,0.28379,32433.0,32417.0,0.5885]
[1625731252623,0.24057544,32431.0,32430.0,0.24057544]
[1625731253224,0.24057544,32431.0,32430.0,0.37207544]
[1625731253824,0.24057544,32431.0,32430.0,0.42907544]
[1625731254124,0.24057544,32431.0,32430.0,0.92907544]
[1625731254573,0.24057544,32431.0,32430.0,0.42907544]
[1625731255023,0.24057544,32431.0,32430.0,0.37207544]
[1625731256451,0.002,32433.0,32430.0,0.37207544]
[1625731256600,0.002,32433.0,32430.0,0.42907544]
[1625731256903,0.002,32433.0,32430.0,0.32907544]
[1625731257202,0.002,32433.0,32432.0,0.1]
[1625731257352,0.002,32433.0,32432.0,0.157]
[1625731257803,0.002,32433.0,32432.0,0.1885]
[1625731258255,0.002,32433.0,32432.0,0.6885]
[1625731258408,0.24057544,32438.0,32432.0,0.6885]
[1625731258704,0.24057544,32438.0,32437.0,0.48115088]
[1625731258854,0.24057544,32438.0,32437.0,0.53815088]
[1625731259155,0.24057544,32438.0,32437.0,0.63815088]
[1625731259305,0.24057544,32438.0,32437.0,0.66965088]
[1625731259981,0.002,32442.0,32437.0,0.66965088]
[1625731260433,0.002,32442.0,32437.0,0.56965088]
[1625731260582,0.002,32442.0,32441.0,0.24057544]
[1625731260734,0.002,32442.0,32441.0,0.34057544]
[1625731260884,0.002,32442.0,32441.0,0.39757544]
[1625731261037,0.04157544,32443.0,32441.0,0.39757544]
[1625731261182,0.04157544,32443.0,32441.0,0.92907544]
[1625731261333,0.04157544,32443.0,32441.0,0.42907544]
[1625731261486,0.04157544,32443.0,32441.0,0.32907544]
[1625731262235,0.04157544,32443.0,32442.0,0.1]
[1625731262534,0.04157544,32443.0,32442.0,0.157]
[1625731262985,0.71039601,32447.0,32442.0,0.1885]
[1625731263286,0.71056086,32449.0,32442.0,0.1885]
[1625731263436,0.71036382,32447.0,32442.0,0.0885]
[1625731263736,0.71036382,32447.0,32446.0,0.1]
[1625731263886,0.71036382,32447.0,32446.0,0.157]
[1625731264040,0.71055571,32449.0,32446.0,0.157]
[1625731264188,0.71035886,32448.0,32446.0,0.157]
[1625731264338,0.71035886,32448.0,32446.0,0.057]
[1625731264640,1.24299484,32450.0,32447.0,0.24057544]
[1625731264789,1.24299484,32450.0,32447.0,0.34057544]
[1625731264941,0.7100433,32448.0,32447.0,0.34057544]
[1625731265091,0.9514533,32448.0,32442.0,0.0315]
[1625731265241,2.19336181,32448.0,32442.0,0.0315]
[1625731265615,0.70898092,32445.0,32442.0,0.0315]
[1625731265919,0.95044586,32448.0,32442.0,0.0315]
[1625731266218,0.24141,32448.0,32444.0,0.1]
[1625731266366,0.95047136,32448.0,32444.0,0.1]
[1625731266665,0.48115088,32445.0,32442.0,0.0315]
[1625731267416,0.48115088,32445.0,32444.0,0.1]
[1625731268395,0.48115088,32445.0,32444.0,0.157]
[1625731268695,0.48115088,32445.0,32444.0,0.1885]
[1625731269146,0.48115088,32445.0,32444.0,0.1315]
[1625731270502,0.48115088,32445.0,32444.0,0.1885]
[1625731272675,0.24057544,32445.0,32444.0,0.42907544]
[1625731272974,0.24057544,32451.0,32444.0,0.66574544]
[1625731273423,0.24057544,32451.0,32444.0,0.56574544]
[1625731273799,0.24057544,32451.0,32450.0,0.1]
[1625731273949,0.24057544,32451.0,32450.0,0.157]
[1625731274550,0.15407759,32452.0,32450.0,0.1885]
[1625731274700,0.15407759,32452.0,32451.0,1.22172632]
[1625731274853,0.15407759,32452.0,32451.0,1.61649632]
[1625731275303,0.15407759,32452.0,32451.0,1.64799632]
[1625731275454,0.15407759,32452.0,32451.0,1.74799632]
[1625731275604,0.15407759,32452.0,32451.0,2.21203732]
[1625731275754,0.15407759,32452.0,32451.0,3.21203732]
[1625731276056,0.15407759,32452.0,32451.0,1.74799632]
[1625731277855,0.15407759,32452.0,32451.0,1.24799632]
[1625731278007,0.15407759,32452.0,32451.0,1.41022632]
[1625731278458,0.15407759,32452.0,32451.0,2.41022632]
[1625731278609,0.15407759,32452.0,32451.0,1.41022632]
[1625731279212,0.15407759,32452.0,32451.0,2.41022632]
[1625731279512,0.15407759,32452.0,32451.0,1.41022632]
[1625731280112,0.15407759,32452.0,32451.0,2.41022632]
[1625731280261,0.15407759,32452.0,32451.0,1.41022632]
[1625731280411,0.15407759,32452.0,32451.0,2.41022632]
[1625731280561,0.15407759,32452.0,32451.0,1.41022632]
[1625731280862,0.15407759,32452.0,32451.0,2.41022632]
[1625731281163,0.15407759,32452.0,32451.0,1.41022632]
[1625731281613,0.15407759,32452.0,32451.0,2.41022632]
[1625731281766,0.18252074,32465.0,32451.0,2.41022632]
[1625731281914,0.17392155,32466.0,32451.0,2.41022632]
[1625731282064,0.17392155,32466.0,32451.0,1.41022632]
[1625731282213,0.01817512,32465.0,32455.0,1.0]
[1625731282363,0.01817512,32465.0,32456.0,0.057]
[1625731282664,0.01817512,32465.0,32464.0,0.1]
[1625731282814,0.01817512,32465.0,32464.0,0.63815088]
[1625731283414,0.17392155,32466.0,32464.0,0.63815088]
[1625731283864,0.018173,32465.0,32464.0,0.53815088]
[1625731284164,0.17392155,32466.0,32464.0,0.56965088]
[1625731284319,0.17392155,32466.0,32464.0,0.66965088]
[1625731284617,0.17392155,32466.0,32464.0,0.56965088]
[1625731285066,0.17392155,32466.0,32465.0,0.1]
[1625731285220,0.17392155,32466.0,32465.0,0.157]
[1625731286119,0.17392155,32466.0,32465.0,0.1885]
[1625731288526,0.17392155,32466.0,32465.0,0.6885]
[1625731290397,0.17392155,32466.0,32465.0,0.1885]
[1625731290849,0.17392155,32466.0,32465.0,0.6885]
[1625731291007,0.17392155,32466.0,32465.0,0.95962]
[1625731291149,0.17392155,32466.0,32465.0,1.95962]
[1625731291449,0.17392155,32466.0,32465.0,0.95962]
[1625731291750,0.16267302,32467.0,32465.0,1.95962]
[1625731291901,0.16267302,32467.0,32466.0,1.0]
[1625731292052,0.16267302,32467.0,32466.0,1.057]
[1625731292202,0.16267302,32467.0,32466.0,0.519732]
[1625731292501,0.16267302,32467.0,32466.0,5.393332]
[1625731292650,0.16267302,32467.0,32466.0,5.024832]
[1625731292801,0.16267302,32467.0,32466.0,6.024832]
[1625731293256,0.03,32478.0,32467.0,1.0]
[1625731293403,1.07226584,32481.0,32468.0,0.557]
[1625731293554,0.03,32481.0,32468.0,0.557]
[1625731293704,0.03,32481.0,32471.0,1.0]
[1625731293853,0.03,32481.0,32472.0,0.557]
[1625731294004,0.03,32481.0,32480.0,0.1]
[1625731294153,0.03,32481.0,32480.0,0.44526]
[1625731294305,0.04816607,32481.0,32480.0,0.44526]
[1625731294829,0.03,32481.0,32480.0,0.92641088]
[1625731295281,0.087,32481.0,32480.0,0.59455955]
[1625731295430,0.10516653,32481.0,32480.0,0.59455955]
[1625731295730,0.087,32481.0,32480.0,0.59455955]
[1625731295880,0.03,32481.0,32480.0,0.59455955]
[1625731296180,0.24057544,32482.0,32480.0,0.59455955]
[1625731296630,0.29757544,32482.0,32480.0,0.59455955]
[1625731297606,0.24057544,32482.0,32480.0,0.59455955]
[1625731297756,0.24057544,32482.0,32480.0,1.09455955]
[1625731298808,0.24057544,32482.0,32480.0,2.09455955]
[1625731299109,0.24057544,32482.0,32480.0,1.09455955]
[1625731299409,0.53367352,32484.0,32480.0,0.59455955]
[1625731299560,0.53367352,32484.0,32481.0,0.5]
[1625731299861,0.53367352,32484.0,32480.0,0.56305955]
[1625731300160,0.53367352,32484.0,32481.0,0.0315]
[1625731300535,0.59067352,32484.0,32481.0,0.0315]
[1625731300843,0.53460084,32483.0,32482.0,0.24057544]
[1625731301135,0.057,32483.0,32482.0,0.24057544]
[1625731301286,0.59239513,32483.0,32482.0,0.24057544]
[1625731301434,0.59239513,32483.0,32482.0,0.27207544]
[1625731301922,0.59239513,32483.0,32466.0,1.0]
[1625731302036,0.59239513,32483.0,32456.0,0.003]
[1625731302037,0.0924,32482.0,32456.0,0.003]
[1625731302185,1.42625722,32481.0,32456.0,0.003]
[1625731302336,0.53495787,32476.0,32456.0,0.003]
[1625731302487,0.1504,32475.0,32456.0,0.0345]
[1625731302637,0.53367223,32468.0,32456.0,0.0345]
[1625731302785,0.24057544,32458.0,32457.0,0.24057544]
[1625731302935,0.54225544,32458.0,32457.0,0.24057544]
[1625731303385,0.54225544,32458.0,32451.0,0.24457544]
[1625731303386,0.54225544,32458.0,32451.0,0.004]
[1625731303687,0.54225544,32458.0,32426.0,1.0]
[1625731303838,0.53256853,32455.0,32424.0,0.057]
[1625731303987,0.5893166,32454.0,32424.0,0.057]
[1625731304137,0.5893166,32454.0,32427.0,1.0]
[1625731304288,0.53188198,32451.0,32428.0,0.5]
[1625731304439,0.057,32450.0,32429.0,1.0]
[1625731304588,0.057,32450.0,32430.0,0.5]
[1625731304738,0.057,32450.0,32446.0,0.0365]
[1625731304890,0.72172632,32447.0,32446.0,0.0365]
[1625731305042,1.08423632,32447.0,32446.0,0.0365]
[1625731306392,1.08423632,32447.0,32446.0,0.0315]
[1625731308946,0.72172632,32447.0,32446.0,0.0315]
[1625731310149,0.72172632,32447.0,32446.0,0.1315]
[1625731310898,0.24057544,32447.0,32446.0,0.37207544]
[1625731312325,0.24057544,32447.0,32446.0,3.24177208]
[1625731312478,0.059,32457.0,32446.0,3.24177208]
[1625731312925,0.059,32457.0,32456.0,0.24057544]
[1625731313226,0.059,32457.0,32456.0,0.34057544]
[1625731313529,0.059,32457.0,32456.0,0.37207544]
[1625731315199,0.07115088,32464.0,32456.0,0.87207544]
[1625731315359,1.07533787,32472.0,32456.0,0.92907544]
[1625731315483,0.08990209,32474.0,32459.0,1.25588111]
[1625731315629,0.08990209,32474.0,32460.0,0.557]
[1625731315780,0.08989996,32475.0,32464.0,1.0]
[1625731315930,0.08989996,32475.0,32465.0,0.057]
[1625731316080,0.08989996,32475.0,32473.0,0.1]
[1625731316231,0.08989996,32475.0,32473.0,0.45236]
[1625731316379,0.08989996,32475.0,32473.0,0.35236]
[1625731316530,0.08994278,32477.0,32473.0,0.35236]
[1625731316831,0.08994278,32477.0,32476.0,0.96230176]
[1625731317583,0.08994278,32477.0,32476.0,1.11930176]
[1625731317733,0.08994278,32477.0,32476.0,1.15080176]
[1625731317885,0.53868202,32479.0,32476.0,1.15080176]
[1625731317886,0.08992688,32479.0,32476.0,1.15080176]
[1625731318034,0.08992688,32479.0,32476.0,1.65080176]
[1625731318335,0.08992688,32479.0,32476.0,1.51301876]
[1625731318633,0.08992688,32479.0,32478.0,0.1]
[1625731318783,0.08992688,32479.0,32478.0,0.157]
[1625731319085,0.08994769,32480.0,32478.0,0.157]
[1625731319236,0.08994763,32481.0,32478.0,0.1885]
[1625731319383,0.08994763,32481.0,32478.0,0.6885]
[1625731319535,0.08994763,32481.0,32479.0,0.464267]
[1625731319685,0.08994457,32482.0,32480.0,0.057]
[1625731319835,0.08994457,32482.0,32480.0,0.4309]
[1625731320136,0.53876974,32483.0,32481.0,0.46274]
[1625731320438,1.07773526,32484.0,32481.0,0.46274]
[1625731320439,0.53896139,32482.0,32481.0,0.46274]
[1625731320586,0.53896139,32482.0,32480.0,0.057]
[1625731320886,1.07774894,32483.0,32481.0,0.61265088]
[1625731321189,0.53897519,32482.0,32481.0,0.61265088]
[1625731321336,1.61673991,32482.0,32481.0,0.51265088]
[1625731321636,1.61673991,32482.0,32481.0,0.61265088]
[1625731321788,0.53897519,32482.0,32481.0,0.61265088]
[1625731324424,0.53897519,32482.0,32481.0,1.07684588]
[1625731324562,0.53887214,32483.0,32481.0,1.07684588]
[1625731324712,0.53887214,32483.0,32481.0,1.35737588]
[1625731324882,0.53887214,32483.0,32482.0,0.24057544]
[1625731325011,0.53887214,32483.0,32482.0,0.79757544]
[1625731325162,0.53880278,32486.0,32482.0,0.79757544]
[1625731325313,0.08995008,32485.0,32482.0,1.25930544]
[1625731325463,0.53880278,32486.0,32485.0,0.1]
[1625731325464,0.08998241,32486.0,32485.0,0.1]
[1625731325615,0.08998241,32486.0,32485.0,0.157]
[1625731325764,0.08998026,32487.0,32485.0,0.157]
[1625731325917,0.53901317,32486.0,32485.0,0.616337]
[1625731326062,0.85087317,32486.0,32485.0,0.057]
[1625731326216,1.92840037,32486.0,32476.0,0.24057544]
[1625731326372,0.08996702,32479.0,32476.0,0.24057544]
[1625731326514,0.31736702,32479.0,32476.0,0.24057544]
[1625731326664,0.057,32478.0,32476.0,0.24057544]
[1625731326814,0.08996702,32479.0,32478.0,0.1]
[1625731326963,0.08996479,32482.0,32478.0,0.82172632]
[1625731327262,0.08996479,32482.0,32478.0,1.28554032]
[1625731327263,0.09000157,32481.0,32478.0,1.28554032]
[1625731327413,0.09000157,32481.0,32478.0,1.18554032]
[1625731327562,0.14700055,32482.0,32478.0,1.18554032]
[1625731327712,0.14700055,32482.0,32478.0,1.52151032]
[1625731327873,0.09000055,32482.0,32481.0,0.1]
[1625731328014,0.08996909,32485.0,32481.0,0.1]
[1625731328166,0.53891663,32486.0,32481.0,0.1]
[1625731328167,0.08996736,32486.0,32481.0,0.1]
[1625731328314,0.08996736,32486.0,32481.0,0.557619]
[1625731328466,0.08996736,32486.0,32481.0,0.457619]
[1625731328614,0.0899662,32487.0,32481.0,0.457619]
[1625731328764,0.0899662,32487.0,32485.0,0.1]
[1625731328914,0.08996613,32486.0,32485.0,0.4101]
[1625731329214,0.08996613,32486.0,32485.0,0.3101]
[1625731329215,0.14696613,32486.0,32485.0,0.3101]
[1625731329366,0.59615193,32486.0,32485.0,0.3101]
[1625731329515,0.59615193,32486.0,32485.0,0.4101]
[1625731329665,1.61729287,32486.0,32485.0,0.4101]
[1625731329818,0.53915193,32486.0,32485.0,0.4101]
[1625731330265,0.59615193,32486.0,32485.0,0.4101]
[1625731330719,0.14698504,32486.0,32485.0,0.4101]
[1625731330941,0.057,32486.0,32485.0,0.89125088]
[1625731331169,0.14702663,32486.0,32485.0,0.89125088]
[1625731331541,0.09002663,32486.0,32485.0,0.89125088]
[1625731331691,0.09002332,32487.0,32485.0,0.89125088]
[1625731331841,0.09001935,32488.0,32485.0,1.35293588]
[1625731332141,0.09001935,32488.0,32485.0,1.25293588]
[1625731332291,0.08998464,32489.0,32485.0,0.79125088]
[1625731332442,0.08998784,32488.0,32485.0,0.48115088]
[1625731332590,0.40399784,32488.0,32485.0,0.48115088]
[1625731332742,0.53907316,32486.0,32478.0,0.24057544]
[1625731332892,0.48115088,32479.0,32473.0,0.24057544]
[1625731333058,0.057,32478.0,32473.0,0.24057544]
[1625731333223,0.057,32478.0,32467.0,0.9141]
[1625731333492,0.09004116,32475.0,32467.0,0.9141]
[1625731333642,0.09005781,32472.0,32467.0,0.9141]
[1625731333792,0.14705781,32472.0,32467.0,0.9141]
[1625731333941,0.53957519,32468.0,32467.0,0.9141]
[1625731334124,0.057,32468.0,32467.0,0.9141]
[1625731334391,0.14709393,32468.0,32467.0,0.9456]
[1625731334559,0.14709393,32468.0,32467.0,1.0456]
[1625731334997,0.86882025,32468.0,32467.0,1.0456]
[1625731335144,1.31848768,32468.0,32467.0,1.0456]
[1625731335896,0.77872632,32468.0,32467.0,1.0456]
[1625731336046,1.31859348,32468.0,32467.0,1.0456]
[1625731336345,0.77872632,32468.0,32467.0,1.0456]
[1625731336947,0.24057544,32468.0,32467.0,1.52675088]
[1625731337278,0.38300292,32475.0,32467.0,3.48905588]
[1625731337437,0.2929,32475.0,32468.0,4.4601]
[1625731337552,0.2929,32475.0,32470.0,1.0]
[1625731337714,0.24057544,32476.0,32470.0,1.5]
[1625731337856,0.24057544,32476.0,32471.0,1.0]
[1625731337999,0.24057544,32476.0,32474.0,0.1]
[1625731338147,0.24057544,32476.0,32474.0,0.33418]
[1625731338296,0.002,32478.0,32475.0,0.462947]
[1625731338824,0.002,32478.0,32477.0,0.1]
[1625731338972,0.0920866,32478.0,32477.0,0.58115088]
[1625731339272,0.54169433,32478.0,32477.0,0.58115088]
[1625731339423,0.59869433,32478.0,32477.0,0.58115088]
[1625731339723,0.59869433,32478.0,32477.0,0.61265088]
[1625731340329,0.59869433,32478.0,32477.0,0.1315]
[1625731340477,2.93727334,32478.0,32467.0,0.9141]
[1625731340630,0.09011709,32472.0,32467.0,0.9141]
[1625731341031,0.09012266,32468.0,32451.0,0.004]
[1625731341112,5.3383,32462.0,32451.0,0.004]
[1625731341263,0.057,32461.0,32451.0,0.004]
[1625731341392,0.14715088,32461.0,32451.0,0.004]
[1625731341702,0.09009207,32458.0,32451.0,0.004]
[1625731341822,0.09009207,32458.0,32456.0,0.0345]
[1625731342156,0.14711062,32459.0,32456.0,0.0345]
[1625731342425,0.53935453,32458.0,32456.0,0.0345]
[1625731342575,0.057,32457.0,32456.0,0.0345]
[1625731342727,0.59616718,32457.0,32456.0,0.0345]
[1625731342879,0.14701102,32457.0,32456.0,0.0345]
[1625731343026,0.86873734,32457.0,32456.0,0.0345]
[1625731343327,0.77872632,32457.0,32456.0,0.0345]
[1625731343629,0.77872632,32457.0,32448.0,0.23907544]
[1625731343784,0.77872632,32457.0,32456.0,0.1]
[1625731343932,0.72172632,32457.0,32456.0,0.40688]
[1625731344083,0.24057544,32457.0,32456.0,0.40688]
[1625731344532,0.24057544,32457.0,32456.0,1.90688]
[1625731344682,0.29757544,32457.0,32456.0,1.87442969]
[1625731344832,0.29757544,32457.0,32456.0,0.41051369]
[1625731344983,0.77872632,32457.0,32456.0,0.1]
[1625731345433,0.77872632,32457.0,32456.0,0.103]
[1625731346193,1.0485754,32457.0,32456.0,0.003]
[1625731346336,1.0485754,32457.0,32451.0,0.004]
[1625731346485,2.39463767,32457.0,32451.0,0.004]
[1625731346636,0.08990379,32453.0,32451.0,0.004]
[1625731346783,0.26953192,32453.0,32451.0,0.004]
[1625731346937,0.59507302,32452.0,32451.0,0.004]
[1625731347084,1.0762239,32452.0,32451.0,0.004]
[1625731347236,3.40597874,32452.0,32451.0,0.004]
[1625731347686,5.1337988,32452.0,32451.0,0.004]
[1625731347838,6.74349801,32452.0,32451.0,0.004]
[1625731348167,5.1337988,32452.0,32451.0,0.004]
[1625731348287,4.8378788,32452.0,32451.0,0.104]
[1625731348437,1.0762239,32452.0,32451.0,0.1]
[1625731348598,0.71730801,32452.0,32451.0,0.1]
[1625731349039,0.80698094,32452.0,32451.0,0.1]
[1625731349492,0.71730801,32452.0,32451.0,0.1]
[1625731349864,0.80695838,32452.0,32451.0,0.1]
[1625731350034,0.53815088,32452.0,32451.0,0.1]
[1625731351064,0.48115088,32452.0,32451.0,0.1]
[1625731352416,0.48115088,32452.0,32451.0,0.37928]
[1625731353019,0.48115088,32452.0,32451.0,0.61985544]
[1625731353170,0.24057544,32452.0,32451.0,0.61985544]
[1625731353622,0.29757544,32452.0,32451.0,0.37928]
[1625731353776,0.61924544,32452.0,32451.0,0.1]
[1625731353927,0.61924544,32452.0,32450.0,0.24057544]
[1625731354523,0.61924544,32452.0,32451.0,0.1]
[1625731355140,0.29757544,32452.0,32451.0,0.40059]
[1625731355874,0.24057544,32452.0,32451.0,0.40059]
[1625731357074,0.24057544,32452.0,32451.0,0.64116544]
[1625731357978,0.29757544,32452.0,32451.0,0.64116544]
[1625731358353,0.24057544,32452.0,32451.0,0.64116544]
[1625731361806,0.24057544,32452.0,32451.0,0.64479971]
[1625731362708,0.24057544,32452.0,32451.0,1.10666971]
[1625731365412,0.29757544,32452.0,32451.0,0.10363427]
[1625731365574,0.29757544,32452.0,32445.0,0.9370934]
[1625731365712,0.29757544,32452.0,32432.0,0.5]
[1625731366013,0.29757544,32452.0,32429.0,0.005]
[1625731366165,0.08982994,32449.0,32440.0,0.00363486]
[1625731366314,0.14682994,32449.0,32440.0,0.00363486]
[1625731366464,0.14682994,32449.0,32429.0,0.005]
[1625731366465,0.26900434,32446.0,32429.0,0.005]
[1625731366625,0.057,32445.0,32429.0,0.005]
[1625731366768,0.268813,32444.0,32429.0,0.005]
[1625731366915,0.057,32443.0,32429.0,0.005]
[1625731367218,0.72172632,32440.0,32429.0,0.005]
[1625731367369,0.77872632,32440.0,32429.0,0.005]
[1625731367969,1.04722229,32440.0,32429.0,0.005]
[1625731368288,0.77872632,32440.0,32429.0,0.005]
[1625731369170,0.77872632,32440.0,32432.0,0.24057544]
[1625731370147,0.48115088,32440.0,32439.0,0.00663566]
[1625731370297,0.2681326,32447.0,32439.0,0.00663566]
[1625731370446,0.2681326,32447.0,32439.0,0.34308566]
[1625731370597,0.59272966,32448.0,32439.0,0.34308566]
[1625731370598,0.057,32448.0,32439.0,0.34308566]
[1625731370747,0.057,32448.0,32440.0,0.00363527]
[1625731370898,0.41937688,32452.0,32440.0,0.00363527]
[1625731370899,0.24057544,32452.0,32440.0,0.00363527]
[1625731371048,0.24057544,32452.0,32440.0,0.46755427]
[1625731371198,0.29757544,32451.0,32447.0,0.34057544]
[1625731371349,0.29757544,32451.0,32447.0,0.56091544]
[1625731371650,0.29757544,32451.0,32447.0,0.46091544]
[1625731371801,0.29757544,32451.0,32447.0,0.22034]
[1625731371953,0.57107544,32451.0,32450.0,0.1]
[1625731372557,0.57107544,32451.0,32439.0,0.003]
[1625731372558,0.83906789,32451.0,32439.0,0.003]
[1625731372712,0.26770767,32448.0,32439.0,0.003]
[1625731372872,0.057,32447.0,32439.0,0.003]
[1625731373002,0.08923609,32446.0,32439.0,0.003]
[1625731373152,0.72172632,32440.0,32439.0,0.003]
[1625731373304,1.05688632,32440.0,32439.0,0.003]
[1625731374203,1.05688632,32440.0,32439.0,0.103]
[1625731375329,1.05688632,32440.0,32439.0,0.1]
[1625731379856,1.05688632,32440.0,32427.0,0.003]
[1625731379992,5.3919,32438.0,32427.0,0.003]
[1625731380149,0.057,32437.0,32427.0,0.003]
[1625731380293,0.0888196,32435.0,32427.0,0.003]
[1625731380440,0.26649979,32434.0,32427.0,0.003]
[1625731380593,0.057,32433.0,32427.0,0.003]
[1625731380893,0.21116545,32433.0,32427.0,0.003]
[1625731381041,0.15417475,32431.0,32427.0,0.003]
[1625731381194,0.15417475,32431.0,32422.0,0.004]
[1625731381195,0.72172632,32428.0,32422.0,0.004]
[1625731381340,0.77872632,32428.0,32422.0,0.004]
[1625731381491,0.08882068,32427.0,32422.0,0.004]
[1625731381639,0.26627547,32427.0,32422.0,0.004]
[1625731382196,0.26627094,32426.0,32422.0,0.004]
[1625731382876,0.26627094,32426.0,32409.0,0.24057544]
[1625731382877,0.26627094,32426.0,32403.0,0.24057544]
[1625731382948,0.26610862,32424.0,32403.0,0.24057544]
[1625731383091,0.2659095,32422.0,32403.0,0.24057544]
[1625731383238,0.72172632,32418.0,32403.0,0.24057544]
[1625731384149,1.05003632,32418.0,32403.0,0.24057544]
[1625731385166,1.05003632,32418.0,32409.0,0.24057544]
[1625731385617,0.72172632,32418.0,32409.0,0.24057544]
[1625731386668,0.72172632,32418.0,32417.0,0.105]
[1625731387422,0.72172632,32418.0,32417.0,0.1]
[1625731389085,0.057,32426.0,32417.0,0.1]
[1625731389269,0.057,32426.0,32425.0,0.48115088]
[1625731389270,0.29757544,32426.0,32425.0,0.48115088]
[1625731389384,0.24057544,32426.0,32425.0,0.73343088]
[1625731389842,0.1628725,32427.0,32425.0,0.83343088]
[1625731390124,0.15417475,32431.0,32426.0,0.5]
[1625731390125,0.11604725,32431.0,32426.0,0.5]
[1625731390279,0.002,32435.0,32426.0,1.960957]
[1625731390580,0.002,32435.0,32429.0,1.0]
[1625731390874,0.002,32435.0,32432.0,0.1]
[1625731391025,0.002,32435.0,32432.0,0.44059]
[1625731391278,0.002,32435.0,32432.0,1.16788132]
[1625731392825,0.002,32435.0,32432.0,1.17151653]
[1625731393126,0.002,32435.0,32432.0,1.67151653]
[1625731393277,0.002,32435.0,32433.0,0.24057544]
[1625731393428,0.002,32435.0,32434.0,0.5]
[1625731393594,0.004,32445.0,32434.0,1.5036347]
[1625731393744,0.004,32445.0,32434.0,1.9669357]
[1625731393885,0.004,32445.0,32440.0,1.0]
[1625731394029,0.004,32445.0,32440.0,1.30754]
[1625731394329,0.004,32445.0,32441.0,0.465275]
[1625731394628,0.004,32445.0,32444.0,0.1]
[1625731394932,0.004,32445.0,32444.0,0.555474]
[1625731395309,0.004,32445.0,32444.0,1.03662488]
[1625731396433,0.24057544,32447.0,32444.0,1.03662488]
[1625731396885,0.24057544,32447.0,32444.0,0.93662488]
[1625731397184,0.24057544,32447.0,32446.0,0.1]
[1625731401114,0.24057544,32447.0,32444.0,0.42675088]
[1625731401268,0.47610544,32447.0,32444.0,0.18617544]
[1625731401416,0.24057544,32445.0,32440.0,0.24057544]
[1625731403265,0.24057544,32445.0,32444.0,0.24057544]
[1625731407693,0.62651944,32447.0,32432.0,0.00663521]
[1625731407843,0.31613,32445.0,32433.0,0.0100911]
[1625731407998,0.057,32444.0,32433.0,0.0100911]
[1625731408147,0.057,32444.0,32433.0,0.0137262]
[1625731408305,0.057,32444.0,32434.0,0.461396]
[1625731408442,0.057,32444.0,32434.0,0.47512027]
[1625731408594,0.057,32444.0,32434.0,0.461396]
[1625731408893,0.057,32444.0,32433.0,0.457805]
[1625731409043,0.057,32444.0,32435.0,0.460828]
[1625731409344,0.29757544,32444.0,32443.0,0.24057544]
[1625731409496,0.24057544,32444.0,32443.0,0.24057544]
[1625731416105,0.57320544,32444.0,32443.0,0.24057544]
[1625731416304,0.57320544,32444.0,32439.0,0.24057544]
[1625731416409,0.26794861,32442.0,32439.0,0.24057544]
[1625731416707,1.24737695,32440.0,32439.0,0.24057544]
[1625731417017,2.31728872,32440.0,32436.0,0.24057544]
[1625731417171,3.56489424,32440.0,32436.0,0.24057544]
[1625731417305,3.56489424,32440.0,32433.0,0.24057544]